fUST/lending_fUST_20240509
["ID","MTS","AMOUNT","RATE_DAILY","PERIOD"]
[326697210,1715257862428,-16666.66,0.00043561,39]
[326697211,1715257862438,-707.6,0.00043561,39]
[326697212,1715257862448,-500.0,0.00043561,39]
[326697213,1715257862459,-651.59,0.00043561,39]
[326697214,1715257862468,-2636.87,0.00043561,39]
[326697215,1715257862479,-500.0,0.00043561,39]
[326697216,1715257862489,-500.0,0.00043561,39]
[326697217,1715257862499,-3370.55,0.00043561,21]
[326697218,1715257862510,-13710.5,0.00043561,39]
[326697219,1715257862520,-1098.59,0.00043561,39]
[326697220,1715257862529,-1361.39,0.00043561,39]
[326697221,1715257862539,-7344.12,0.00043561,39]
[326697222,1715257862549,-500.0,0.00043561,39]
[326697223,1715257862558,-500.0,0.00043561,39]
[326697224,1715257862571,-500.0,0.00043561,39]
[326697225,1715257862580,-579.06,0.00043561,39]
[326697226,1715257862589,-1699.39,0.00043561,39]
[326697227,1715257862599,-1151.12,0.00043561,39]
[326697228,1715257862609,-500.0,0.00043561,39]
[326697229,1715257862619,-500.0,0.00043561,39]
[326697230,1715257862629,-500.0,0.00043561,39]
[326697231,1715257862639,-528.02,0.00043561,39]
[326697232,1715257862649,-893.08,0.00043561,39]
[326697233,1715257862659,-500.0,0.00043561,39]
[326697234,1715257862669,-529.69139074,0.00043561,39]
[326697235,1715257862679,-500.0,0.00043561,39]
[326697236,1715257862689,-987.24,0.00043561,39]
[326697237,1715257862698,-500.0,0.00043561,39]
[326697238,1715257862709,-2122.67,0.00043561,39]
[326697239,1715257862719,-1395.57,0.00043561,39]
[326697240,1715257862728,-500.0,0.00043561,39]
[326697241,1715257862738,-1081.08,0.00043561,39]
[326697242,1715257862748,-2710.95,0.00043561,39]
[326697243,1715257862759,-500.0,0.00043835,40]
[326697244,1715257862769,-500.0,0.00043835,40]
[326697245,1715257862779,-374.28698243,0.00043835,40]
[326697246,1715257862789,-622.6,0.00043835,40]
[326697247,1715257862799,-500.0,0.00043835,40]
[326697248,1715257862809,-500.0,0.00043835,40]
[326697249,1715257862826,-511.52,0.00043835,40]
[326697250,1715257862836,-711.13,0.00043835,40]
[326697251,1715257862847,-438.21447698,0.00043835,40]
[326697252,1715257862857,-883.2,0.00043835,40]
[326697253,1715257862867,-500.0,0.00043835,40]
[326697254,1715257862878,-916.56,0.00043835,40]
[326697255,1715257862888,-500.0,0.00043835,40]
[326697256,1715257862899,-1297.09,0.00043835,40]
[326697257,1715257862909,-16666.66,0.00043835,40]
[326697258,1715257862919,-707.6,0.00043835,40]
[326697259,1715257862930,-500.0,0.00043835,40]
[326697260,1715257862941,-651.59,0.00043835,40]
[326697261,1715257862952,-2636.87,0.00043835,40]
[326697262,1715257862962,-500.0,0.00043835,40]
[326697263,1715257862972,-499.26944823,0.00043835,40]
[326697264,1715257862982,-3370.55,0.00043835,21]
[326697265,1715257862992,-13710.5,0.00043835,40]
[326697266,1715257863002,-1098.59,0.00043835,40]
[326697267,1715257863013,-1361.39,0.00043835,40]
[326697268,1715257863023,-7344.12,0.00043835,40]
[326697269,1715257863033,-500.0,0.00043835,40]
[326697270,1715257863042,-500.0,0.00043835,40]
[326697271,1715257863051,-500.0,0.00043835,40]
[326697272,1715257863061,-579.06,0.00043835,40]
[326697273,1715257863076,-1699.39,0.00043835,40]
[326697274,1715257863086,-1151.12,0.00043835,40]
[326697275,1715257863096,-500.0,0.00043835,40]
[326697276,1715257863105,-500.0,0.00043835,40]
[326697277,1715257863115,-500.0,0.00043835,40]
[326697278,1715257863124,-528.02,0.00043835,40]
[326697279,1715257863133,-893.08,0.00043835,40]
[326697280,1715257863143,-500.0,0.00043835,40]
[326697281,1715257863153,-500.0,0.00043835,40]
[326697282,1715257863163,-987.24,0.00043835,40]
[326697283,1715257863172,-500.0,0.00043835,40]
[326697284,1715257863183,-2122.67,0.00043835,40]
[326697285,1715257863192,-1395.57,0.00043835,40]
[326697286,1715257863202,-500.0,0.00043835,40]
[326697287,1715257863211,-1081.08,0.00043835,40]
[326697288,1715257863222,-2710.95,0.00043835,40]
[326697289,1715257863232,-557.0,0.0004396,30]
[326697290,1715257863243,-1000.0,0.00043987,3]
[326697291,1715257863252,-1000.0,0.00044,44]
[326697292,1715257863262,-156.08742444,0.00044,15]
[326697293,1715257863275,-1000.0,0.00044,120]
[326697294,1715257863285,-154.69061876,0.00044,120]
[326697295,1715257863295,-488.79995219,0.00044109,41]
[326697296,1715257863304,-500.0,0.00044109,41]
[326697297,1715257863321,-622.6,0.00044109,41]
[326697298,1715257863331,-500.0,0.00044109,41]
[326697299,1715257863340,-500.0,0.00044109,41]
[326697300,1715257863350,-511.52,0.00044109,41]
[326697301,1715257863360,-711.13,0.00044109,41]
[326697302,1715257863370,-883.2,0.00044109,41]
[326697303,1715257863379,-500.0,0.00044109,41]
[326697304,1715257863389,-916.56,0.00044109,41]
[326697305,1715257863399,-299.01672151,0.00044109,41]
[326697306,1715257863409,-1297.09,0.00044109,41]
[326697307,1715257863418,-16666.66,0.00044109,41]
[326697308,1715257863429,-707.6,0.00044109,41]
[326697309,1715257863439,-500.0,0.00044109,41]
[326697310,1715257863450,-651.59,0.00044109,41]
[326697311,1715257863460,-2636.87,0.00044109,41]
[326697312,1715257863471,-376.37552718,0.00044109,41]
[326697313,1715257863481,-3370.55,0.00044109,21]
[326697314,1715257863492,-13710.5,0.00044109,41]
[326697315,1715257863502,-1098.59,0.00044109,41]
[326697316,1715257863512,-1361.39,0.00044109,41]
[326697317,1715257863522,-7344.12,0.00044109,41]
[326697318,1715257863532,-500.0,0.00044109,41]
[326697319,1715257863541,-500.0,0.00044109,41]
[326697320,1715257863551,-500.0,0.00044109,41]
[326697321,1715257863560,-579.06,0.00044109,41]
[326697322,1715257863575,-1699.39,0.00044109,41]
[326697323,1715257863585,-1151.12,0.00044109,41]
[326697324,1715257863595,-375.97809588,0.00044109,41]
[326697325,1715257863604,-500.0,0.00044109,41]
[326697326,1715257863615,-500.0,0.00044109,41]
[326697327,1715257863625,-528.02,0.00044109,41]
[326697328,1715257863634,-893.08,0.00044109,41]
[326697329,1715257863644,-500.0,0.00044109,41]
[326697330,1715257863654,-500.0,0.00044109,41]
[326697331,1715257863664,-987.24,0.00044109,41]
[326697332,1715257863675,-500.0,0.00044109,41]
[326697333,1715257863685,-2122.67,0.00044109,41]
[326697334,1715257863695,-1395.57,0.00044109,41]
[326697335,1715257863705,-500.0,0.00044109,41]
[326697336,1715257863715,-1081.08,0.00044109,41]
[326697337,1715257863726,-2710.95,0.00044109,41]
[326697338,1715257863735,-512.27050682,0.00044383,42]
[326697339,1715257863745,-622.6,0.00044383,42]
[326697340,1715257863755,-500.0,0.00044383,42]
[326697341,1715257863766,-331.50600862,0.00044383,42]
[326697342,1715257863776,-511.52,0.00044383,42]
[326697343,1715257863786,-711.13,0.00044383,42]
[326697344,1715257863795,-883.2,0.00044383,42]
[326697345,1715257863805,-500.0,0.00044383,42]
[326697346,1715257863819,-916.56,0.00044383,42]
[326697347,1715257863829,-1297.09,0.00044383,42]
[326697348,1715257863839,-16666.66,0.00044383,42]
[326697349,1715257863849,-707.6,0.00044383,42]
[326697350,1715257863860,-500.0,0.00044383,42]
[326697351,1715257863870,-651.59,0.00044383,42]
[326697352,1715257863882,-2636.87,0.00044383,42]
[326697353,1715257863973,-3370.55,0.00044383,21]
[326697354,1715257863985,-13710.5,0.00044383,42]
[326697355,1715257863996,-1098.59,0.00044383,42]
[326697356,1715257864007,-1361.39,0.00044383,42]
[326697357,1715257864018,-7344.12,0.00044383,42]
[326697358,1715257864028,-500.0,0.00044383,42]
[326697359,1715257864039,-500.0,0.00044383,42]
[326697360,1715257864049,-500.0,0.00044383,42]
[326697361,1715257864059,-579.06,0.00044383,42]
[326697362,1715257864073,-1699.39,0.00044383,42]
[326697363,1715257864083,-1151.12,0.00044383,42]
[326697364,1715257864092,-500.0,0.00044383,42]
[326697365,1715257864102,-500.0,0.00044383,42]
[326697366,1715257864112,-528.02,0.00044383,42]
[326697367,1715257864121,-893.08,0.00044383,42]
[326697368,1715257864132,-500.0,0.00044383,42]
[326697369,1715257864142,-500.0,0.00044383,42]
[326697370,1715257864151,-987.24,0.00044383,42]
[326697371,1715257864161,-500.0,0.00044383,42]
[326697372,1715257864171,-2122.67,0.00044383,42]
[326697373,1715257864182,-1395.57,0.00044383,42]
[326697374,1715257864192,-500.0,0.00044383,42]
[326697375,1715257864202,-1081.08,0.00044383,42]
[326697376,1715257864212,-2710.95,0.00044383,42]
[326697377,1715257864223,-1409.04840291,0.00044399,6]
[326697378,1715257864232,-1000000.0,0.000444,2]
[326697379,1715257864241,-750000.0,0.000444,30]
[326697380,1715257864251,-2000.0,0.000445,30]
[326697381,1715257864261,-1406.0,0.000445,30]
[326697382,1715257864271,-622.6,0.00044657,43]
[326697383,1715257864285,-299.09753495,0.00044657,43]
[326697384,1715257864294,-511.52,0.00044657,43]
[326697385,1715257864304,-711.13,0.00044657,43]
[326697386,1715257864320,-883.2,0.00044657,43]
[326697387,1715257864330,-500.0,0.00044657,43]
[326697388,1715257864339,-916.56,0.00044657,43]
[326697389,1715257864349,-1297.09,0.00044657,43]
[326697390,1715257864360,-16666.66,0.00044657,43]
[326697391,1715257864371,-707.6,0.00044657,43]
[326697392,1715257864381,-500.0,0.00044657,43]
[326697393,1715257864391,-651.59,0.00044657,43]
[326697394,1715257864402,-2636.87,0.00044657,43]
[326697395,1715257864412,-3370.55,0.00044657,21]
[326697396,1715257864422,-13710.5,0.00044657,43]
[326697397,1715257864433,-1098.59,0.00044657,43]
[326697398,1715257864443,-1361.39,0.00044657,43]
[326697399,1715257864453,-7344.12,0.00044657,43]
[326697400,1715257864463,-510.73490288,0.00044657,43]
[326697401,1715257864473,-500.0,0.00044657,43]
[326697402,1715257864482,-500.0,0.00044657,43]
[326697403,1715257864492,-579.06,0.00044657,43]
[326697404,1715257864502,-1699.39,0.00044657,43]
[326697405,1715257864512,-1151.12,0.00044657,43]
[326697406,1715257864522,-500.0,0.00044657,43]
[326697407,1715257864532,-500.0,0.00044657,43]
[326697408,1715257864542,-528.02,0.00044657,43]
[326697409,1715257864551,-893.08,0.00044657,43]
[326697410,1715257864560,-500.0,0.00044657,43]
[326697411,1715257864573,-500.0,0.00044657,43]
[326697412,1715257864583,-987.24,0.00044657,43]
[326697413,1715257864592,-500.0,0.00044657,43]
[326697414,1715257864602,-2122.67,0.00044657,43]
[326697415,1715257864612,-1395.57,0.00044657,43]
[326697416,1715257864622,-500.0,0.00044657,43]
[326697417,1715257864632,-1081.08,0.00044657,43]
[326697418,1715257864642,-2710.95,0.00044657,43]
[326697419,1715257864652,-622.6,0.00044931,44]
[326697420,1715257864661,-511.52,0.00044931,44]
[326697421,1715257864671,-711.13,0.00044931,44]
[326697422,1715257864680,-883.2,0.00044931,44]
[326697423,1715257864690,-500.0,0.00044931,44]
[326697424,1715257864699,-916.56,0.00044931,44]
[326697425,1715257864709,-1297.09,0.00044931,44]
[326697426,1715257864718,-16666.66,0.00044931,44]
[326697427,1715257864728,-707.6,0.00044931,44]
[326697428,1715257864738,-387.00890973,0.00044931,44]
[326697429,1715257864748,-651.59,0.00044931,44]
[326697430,1715257864758,-2636.87,0.00044931,44]
[326697431,1715257864767,-3370.55,0.00044931,21]
[326697432,1715257864778,-13710.5,0.00044931,44]
[326697433,1715257864788,-1098.59,0.00044931,44]
[326697434,1715257864797,-1361.39,0.00044931,44]
[326697435,1715257864808,-7344.12,0.00044931,44]
[326697436,1715257864820,-500.0,0.00044931,44]
[326697437,1715257864830,-352.1378563,0.00044931,44]
[326697438,1715257864839,-579.06,0.00044931,44]
[326697439,1715257864849,-1699.39,0.00044931,44]
[326697440,1715257864864,-1151.12,0.00044931,44]
[326697441,1715257864877,-500.0,0.00044931,44]
[326697442,1715257864887,-500.0,0.00044931,44]
[326697443,1715257864896,-528.02,0.00044931,44]
[326697444,1715257864906,-893.08,0.00044931,44]
[326697445,1715257864916,-500.0,0.00044931,44]
[326697446,1715257864926,-500.0,0.00044931,44]
[326697447,1715257864935,-987.24,0.00044931,44]
[326697448,1715257864945,-500.0,0.00044931,44]
[326697449,1715257864955,-2122.67,0.00044931,44]
[326697450,1715257864964,-1395.57,0.00044931,44]
[326697451,1715257864975,-500.0,0.00044931,44]
[326697452,1715257864984,-1081.08,0.00044931,44]
[326697453,1715257864994,-2710.95,0.00044931,44]
[326697454,1715257865004,-1000.0,0.00044987,3]
[326697455,1715257865013,-220.04883506,0.00044999,120]
[326697456,1715257865024,-2000.0,0.00045,10]
[326697457,1715257865034,-819.54408512,0.00045,20]
[326697458,1715257865044,-151.0,0.00045,120]
[326697459,1715257865054,-2000.0,0.00045,30]
[326697460,1715257865066,-2000.0,0.00045,30]
[326697461,1715257865076,-9831.0,0.00045,30]
[326697462,1715257865086,-101077.55435545,0.00045,111]
[326697463,1715257865096,-259.0,0.00045,2]
[326697464,1715257865106,-153.0,0.00045068,2]
[326697465,1715257865116,-622.6,0.00045205,45]
[326697466,1715257865126,-511.52,0.00045205,45]
[326697467,1715257865136,-711.13,0.00045205,45]
[326697468,1715257865146,-883.2,0.00045205,45]
[326697469,1715257865156,-500.0,0.00045205,45]
[326697470,1715257865166,-916.56,0.00045205,45]
[326697471,1715257865175,-1297.09,0.00045205,45]
[326697472,1715257865185,-16666.66,0.00045205,45]
[326697473,1715257865195,-707.6,0.00045205,45]
[326697474,1715257865205,-651.59,0.00045205,45]
[326697475,1715257865215,-2636.87,0.00045205,45]
[326697476,1715257865225,-3370.55,0.00045205,21]
[326697477,1715257865235,-13710.5,0.00045205,45]
[326697478,1715257865246,-1098.59,0.00045205,45]
[326697479,1715257865256,-1361.39,0.00045205,45]
[326697480,1715257865266,-7344.12,0.00045205,45]
[326697481,1715257865277,-500.0,0.00045205,45]
[326697482,1715257865287,-579.06,0.00045205,45]
[326697483,1715257865301,-1699.39,0.00045205,45]
[326697484,1715257865311,-1151.12,0.00045205,45]
[326697485,1715257865324,-500.0,0.00045205,45]
[326697486,1715257865335,-486.9721476,0.00045205,45]
[326697487,1715257865344,-528.02,0.00045205,45]
[326697488,1715257865354,-893.08,0.00045205,45]
[326697489,1715257865363,-500.0,0.00045205,45]
[326697490,1715257865373,-500.0,0.00045205,45]
[326697491,1715257865384,-987.24,0.00045205,45]
[326697492,1715257865393,-500.0,0.00045205,45]
[326697493,1715257865403,-2122.67,0.00045205,45]
[326697494,1715257865412,-1395.57,0.00045205,45]
[326697495,1715257865422,-500.0,0.00045205,45]
[326697496,1715257865431,-1081.08,0.00045205,45]
[326697497,1715257865441,-2710.95,0.00045205,45]
[326697498,1715257865450,-622.6,0.00045479,46]
[326697499,1715257865459,-511.52,0.00045479,46]
[326697500,1715257865469,-711.13,0.00045479,46]
[326697501,1715257865478,-883.2,0.00045479,46]
[326697502,1715257865488,-500.0,0.00045479,46]
[326697503,1715257865497,-916.56,0.00045479,46]
[326697504,1715257865506,-1297.09,0.00045479,46]
[326697505,1715257865516,-16666.66,0.00045479,46]
[326697506,1715257865527,-707.6,0.00045479,46]
[326697507,1715257865537,-651.59,0.00045479,46]
[326697508,1715257865548,-2636.87,0.00045479,46]
[326697509,1715257865559,-3370.55,0.00045479,21]
[326697510,1715257865572,-13710.5,0.00045479,46]
[326697511,1715257865583,-1098.59,0.00045479,46]
[326697512,1715257865594,-1361.39,0.00045479,46]
[326697513,1715257865604,-7344.12,0.00045479,46]
[326697514,1715257865614,-500.0,0.00045479,46]
[326697515,1715257865624,-579.06,0.00045479,46]
[326697516,1715257865634,-1699.39,0.00045479,46]
[326697517,1715257865645,-1151.12,0.00045479,46]
[326697518,1715257865654,-500.0,0.00045479,46]
[326697519,1715257865664,-528.02,0.00045479,46]
[326697520,1715257865673,-893.08,0.00045479,46]
[326697521,1715257865683,-500.0,0.00045479,46]
[326697522,1715257865692,-500.0,0.00045479,46]
[326697523,1715257865702,-987.24,0.00045479,46]
[326697524,1715257865713,-500.0,0.00045479,46]
[326697525,1715257865722,-2122.67,0.00045479,46]
[326697526,1715257865731,-1395.57,0.00045479,46]
[326697527,1715257865741,-500.0,0.00045479,46]
[326697528,1715257865827,-1081.08,0.00045479,46]
[326697529,1715257865838,-2710.95,0.00045479,46]
[326697530,1715257865847,-151.0,0.00045644,120]
[326697531,1715257865857,-500.0,0.0004566,120]
[326697532,1715257865866,-295.83378038,0.00045666,15]
[326697533,1715257865876,-200.0,0.00045689,120]
[326697534,1715257865886,-622.6,0.00045753,47]
[326697535,1715257865895,-511.52,0.00045753,47]
[326697536,1715257865905,-711.13,0.00045753,47]
[326697537,1715257865915,-883.2,0.00045753,47]
[326697538,1715257865924,-500.0,0.00045753,47]
[326697539,1715257865934,-916.56,0.00045753,47]
[326697540,1715257865944,-1297.09,0.00045753,47]
[326697541,1715257865953,-16666.66,0.00045753,47]
[326697542,1715257865963,-707.6,0.00045753,47]
[326697543,1715257865973,-651.59,0.00045753,47]
[326697544,1715257865983,-2636.87,0.00045753,47]
[326697545,1715257865992,-3370.55,0.00045753,21]
[326697546,1715257866003,-13710.5,0.00045753,47]
[326697547,1715257866012,-1098.59,0.00045753,47]
[326697548,1715257866021,-1361.39,0.00045753,47]
[326697549,1715257866031,-7344.12,0.00045753,47]
[326697550,1715257866040,-289.5234607,0.00045753,47]
[326697551,1715257866049,-579.06,0.00045753,47]
[326697552,1715257866059,-1699.39,0.00045753,47]
[326697553,1715257866071,-1151.12,0.00045753,47]
[326697554,1715257866080,-456.98681512,0.00045753,47]
[326697555,1715257866089,-528.02,0.00045753,47]
[326697556,1715257866097,-893.08,0.00045753,47]
[326697557,1715257866106,-500.0,0.00045753,47]
[326697558,1715257866116,-500.0,0.00045753,47]
[326697559,1715257866125,-987.24,0.00045753,47]
[326697560,1715257866135,-500.0,0.00045753,47]
[326697561,1715257866144,-2122.67,0.00045753,47]
[326697562,1715257866153,-1395.57,0.00045753,47]
[326697563,1715257866164,-325.56188148,0.00045753,47]
[326697564,1715257866174,-1081.08,0.00045753,47]
[326697565,1715257866184,-2710.95,0.00045753,47]
[326697566,1715257866194,-13417.22621543,0.00045869,120]
[326697567,1715257866203,-18679.94939406,0.00045869,120]
[326697568,1715257866213,-155.09394253,0.000459,4]
[326697569,1715257866222,-622.6,0.00046027,48]
[326697570,1715257866231,-511.52,0.00046027,48]
[326697571,1715257866241,-711.13,0.00046027,48]
[326697572,1715257866250,-883.2,0.00046027,48]
[326697573,1715257866259,-500.0,0.00046027,48]
[326697574,1715257866269,-916.56,0.00046027,48]
[326697575,1715257866284,-1297.09,0.00046027,48]
[326697576,1715257866294,-16666.66,0.00046027,48]
[326697577,1715257866303,-707.6,0.00046027,48]
[326697578,1715257866312,-651.59,0.00046027,48]
[326697579,1715257866328,-2636.87,0.00046027,48]
[326697580,1715257866337,-3370.55,0.00046027,21]
[326697581,1715257866346,-13710.5,0.00046027,48]
[326697582,1715257866356,-1098.59,0.00046027,48]
[326697583,1715257866366,-1361.39,0.00046027,48]
[326697584,1715257866376,-7344.12,0.00046027,48]
[326697585,1715257866385,-579.06,0.00046027,48]
[326697586,1715257866394,-1699.39,0.00046027,48]
[326697587,1715257866404,-1151.12,0.00046027,48]
[326697588,1715257866414,-528.02,0.00046027,48]
[326697589,1715257866424,-893.08,0.00046027,48]
[326697590,1715257866433,-500.0,0.00046027,48]
[326697591,1715257866442,-500.0,0.00046027,48]
[326697592,1715257866452,-987.24,0.00046027,48]
[326697593,1715257866462,-500.0,0.00046027,48]
[326697594,1715257866472,-2122.67,0.00046027,48]
[326697595,1715257866481,-1395.57,0.00046027,48]
[326697596,1715257866490,-1081.08,0.00046027,48]
[326697597,1715257866500,-2710.95,0.00046027,48]
[326697598,1715257866509,-151.0,0.00046274,120]
[326697599,1715257866519,-557.0,0.00046274,30]
[326697600,1715257866528,-622.6,0.00046301,49]
[326697601,1715257866538,-511.52,0.00046301,49]
[326697602,1715257866548,-711.13,0.00046301,49]
[326697603,1715257866557,-883.2,0.00046301,49]
[326697604,1715257866568,-500.0,0.00046301,49]
[326697605,1715257866577,-916.56,0.00046301,49]
[326697606,1715257866586,-1297.09,0.00046301,49]
[326697607,1715257866595,-16666.66,0.00046301,49]
[326697608,1715257866604,-707.6,0.00046301,49]
[326697609,1715257866615,-651.59,0.00046301,49]
[326697610,1715257866625,-2636.87,0.00046301,49]
[326697611,1715257866635,-3370.55,0.00046301,21]
[326697612,1715257866644,-13710.5,0.00046301,49]
[326697613,1715257866655,-1098.59,0.00046301,49]
[326697614,1715257866665,-1361.39,0.00046301,49]
[326697615,1715257866674,-7344.12,0.00046301,49]
[326697616,1715257866684,-579.06,0.00046301,49]
[326697617,1715257866694,-1699.39,0.00046301,49]
[326697618,1715257866704,-1151.12,0.00046301,49]
[326697619,1715257866713,-528.02,0.00046301,49]
[326697620,1715257866723,-893.08,0.00046301,49]
[326697621,1715257866733,-541.30302221,0.00046301,49]
[326697622,1715257866742,-500.0,0.00046301,49]
[326697623,1715257866751,-987.24,0.00046301,49]
[326697624,1715257866761,-500.0,0.00046301,49]
[326697625,1715257866770,-2122.67,0.00046301,49]
[326697626,1715257866780,-1395.57,0.00046301,49]
[326697627,1715257866789,-1081.08,0.00046301,49]
[326697628,1715257866798,-2710.95,0.00046301,49]
[326697629,1715257866808,-200.0,0.00046365,120]
[326697630,1715257866818,-622.6,0.00046575,50]
[326697631,1715257866828,-511.52,0.00046575,50]
[326697632,1715257866837,-711.13,0.00046575,50]
[326697633,1715257866847,-883.2,0.00046575,50]
[326697634,1715257866856,-500.0,0.00046575,50]
[326697635,1715257866865,-916.56,0.00046575,50]
[326697636,1715257866875,-1297.09,0.00046575,50]
[326697637,1715257866886,-16666.66,0.00046575,50]
[326697638,1715257866895,-707.6,0.00046575,50]
[326697639,1715257866905,-651.59,0.00046575,50]
[326697640,1715257866915,-2636.87,0.00046575,50]
[326697641,1715257866925,-3370.55,0.00046575,21]
[326697642,1715257866935,-13710.5,0.00046575,50]
[326697643,1715257866944,-1098.59,0.00046575,50]
[326697644,1715257866953,-1361.39,0.00046575,50]
[326697645,1715257866963,-7344.12,0.00046575,50]
[326697646,1715257866973,-579.06,0.00046575,50]
[326697647,1715257866983,-1699.39,0.00046575,50]
[326697648,1715257866994,-1151.12,0.00046575,50]
[326697649,1715257867003,-528.02,0.00046575,50]
[326697650,1715257867012,-893.08,0.00046575,50]
[326697651,1715257867022,-500.0,0.00046575,50]
[326697652,1715257867031,-987.24,0.00046575,50]
[326697653,1715257867041,-500.0,0.00046575,50]
[326697654,1715257867051,-2122.67,0.00046575,50]
[326697655,1715257867060,-1395.57,0.00046575,50]
[326697656,1715257867072,-1081.08,0.00046575,50]
[326697657,1715257867081,-2710.95,0.00046575,50]
[326697658,1715257867090,-306.0,0.00046575,2]
[326697659,1715257867099,-2874.03465113,0.00046647,120]
[326697660,1715257867109,-350522.33385248,0.0004678,120]
[326697661,1715257867118,-89018.96746605,0.0004678,120]
[326697662,1715257867128,-622.6,0.00046849,51]
[326697663,1715257867137,-511.52,0.00046849,51]
[326697664,1715257867147,-711.13,0.00046849,51]
[326697665,1715257867156,-883.2,0.00046849,51]
[326697666,1715257867165,-500.0,0.00046849,51]
[326697667,1715257867175,-916.56,0.00046849,51]
[326697668,1715257867184,-1297.09,0.00046849,51]
[326697669,1715257867193,-16666.66,0.00046849,51]
[326697670,1715257867203,-707.6,0.00046849,51]
[326697671,1715257867213,-651.59,0.00046849,51]
[326697672,1715257867222,-2636.87,0.00046849,51]
[326697673,1715257867232,-3370.55,0.00046849,21]
[326697674,1715257867242,-13710.5,0.00046849,51]
[326697675,1715257867252,-1098.59,0.00046849,51]
[326697676,1715257867261,-1361.39,0.00046849,51]
[326697677,1715257867272,-7344.12,0.00046849,51]
[326697678,1715257867282,-579.06,0.00046849,51]
[326697679,1715257867297,-1699.39,0.00046849,51]
[326697680,1715257867306,-1151.12,0.00046849,51]
[326697681,1715257867316,-528.02,0.00046849,51]
[326697682,1715257867327,-893.08,0.00046849,51]
[326697683,1715257867337,-647.10091385,0.00046849,51]
[326697684,1715257867346,-987.24,0.00046849,51]
[326697685,1715257867356,-500.0,0.00046849,51]
[326697686,1715257867368,-2122.67,0.00046849,51]
[326697687,1715257867377,-1395.57,0.00046849,51]
[326697688,1715257867388,-1081.08,0.00046849,51]
[326697689,1715257867467,-2710.95,0.00046849,51]
[326697690,1715257867477,-10000.0,0.00046888,120]
[326697691,1715257867486,-151.0,0.00046904,120]
[326697692,1715257867496,-20451.94899401,0.00047,4]
[326697693,1715257867505,-2586.88,0.00047,6]
[326697694,1715257867515,-2014.18,0.00047,6]
[326697695,1715257867524,-622.6,0.00047123,52]
[326697696,1715257867534,-511.52,0.00047123,52]
[326697697,1715257867544,-711.13,0.00047123,52]
[326697698,1715257867553,-883.2,0.00047123,52]
[326697699,1715257867563,-500.0,0.00047123,52]
[326697700,1715257867574,-916.56,0.00047123,52]
[326697701,1715257867584,-1297.09,0.00047123,52]
[326697702,1715257867593,-16666.66,0.00047123,52]
[326697703,1715257867603,-707.6,0.00047123,52]
[326697704,1715257867613,-651.59,0.00047123,52]
[326697705,1715257867623,-2636.87,0.00047123,52]
[326697706,1715257867633,-3370.55,0.00047123,21]
[326697707,1715257867642,-13710.5,0.00047123,52]
[326697708,1715257867652,-1098.59,0.00047123,52]
[326697709,1715257867662,-1361.39,0.00047123,52]